bitfinex/quotes_BTCUSD_20250110
["timestamp","ask_amount","ask_price","bid_price","bid_amount"]
[1736531836824,0.417717,95759.0,95755.0,3.99751175]
[1736531837187,0.1,95793.0,95756.0,0.10429976]
[1736531837428,0.009,95759.0,95756.0,0.10429976]
[1736531837864,0.208859,95758.0,95755.0,3.99751175]
[1736531838100,0.009,95759.0,95755.0,3.99751175]
[1736531838235,0.1,95756.0,95755.0,3.99751175]
[1736531838431,0.56316376,95756.0,95755.0,3.99751175]
[1736531838657,0.66316376,95756.0,95755.0,3.74921175]
[1736531838865,0.1,95728.0,95699.0,0.041854]
[1736531839061,0.217858,95759.0,95729.0,0.208921]
[1736531839062,0.009,95759.0,95729.0,0.208921]
[1736531839223,0.208871,95753.0,95730.0,0.10429976]
[1736531839447,0.208871,95753.0,95714.0,0.00031428]
[1736531839448,0.1,95751.0,95714.0,0.00031428]
[1736531839658,0.1,95745.0,95715.0,0.10429976]
[1736531839900,0.10560534,95750.0,95714.0,0.00031428]
[1736531839901,0.1,95735.0,95714.0,0.00031428]
[1736531840095,0.0013059,95743.0,95715.0,0.10429976]
[1736531840291,0.1,95752.0,95729.0,0.001]
[1736531840532,0.00130562,95751.0,95729.0,0.001]
[1736531840743,0.208903,95739.0,95721.0,0.20894]
[1736531841081,0.00130563,95738.0,95714.0,0.00031428]
[1736531841495,0.00330582,95745.0,95715.0,0.10429976]
[1736531841699,0.208903,95739.0,95721.0,0.208938]
[1736531841905,0.208903,95739.0,95722.0,0.10429976]
[1736531842118,0.002,95745.0,95733.0,0.208913]
[1736531842333,1.362,95907.0,95714.0,0.00031428]
[1736531842334,0.208827,95773.0,95735.0,0.31320976]
[1736531842568,0.208828,95773.0,95739.0,0.10429976]
[1736531842779,0.003,95752.0,95740.0,1.5]
[1736531842990,0.208847,95764.0,95742.0,0.208894]
[1736531843200,0.208847,95764.0,95723.0,0.01764]
[1736531843201,0.208798,95787.0,95751.0,0.10429976]
[1736531843410,0.208817,95778.0,95758.0,0.208858]
[1736531843623,0.208815,95779.0,95763.0,1.5]
[1736531843832,0.208815,95779.0,95764.0,0.10429976]
[1736531844039,0.1,95789.0,95763.0,1.5]
[1736531844221,0.1,95805.0,95765.0,0.10429976]
[1736531844222,0.208815,95779.0,95765.0,0.10429976]
[1736531844494,0.208815,95779.0,95752.0,0.0803]
[1736531844495,0.208866,95755.0,95752.0,0.0803]
[1736531844704,0.1,95775.0,95733.0,1.5]
[1736531844925,0.208841,95767.0,95734.0,0.10429976]
[1736531845156,0.10048827,95779.0,95734.0,0.10429976]
[1736531845157,0.20889,95745.0,95734.0,0.10429976]
[1736531845378,0.00130532,95766.0,95734.0,0.10429976]
[1736531845379,0.208888,95746.0,95734.0,0.10429976]
[1736531845774,0.208888,95746.0,95734.0,0.10229976]
[1736531845775,0.208886,95746.0,95734.0,0.10229976]
[1736531846317,0.1,95781.0,95735.0,0.10429976]
[1736531846493,0.01764,95817.0,95735.0,0.10429976]
[1736531846494,0.208814,95779.0,95735.0,0.10429976]
[1736531846694,0.32781779,95780.0,95749.0,0.10429976]
[1736531846910,0.00130507,95779.0,95749.0,0.10429976]
[1736531847115,0.32781779,95800.0,95768.0,0.10429976]
[1736531847325,0.32781779,95780.0,95768.0,0.10429976]
[1736531848038,0.32781779,95790.0,95768.0,0.10429976]
[1736531848239,0.32781779,95810.0,95784.0,0.208801]
[1736531848440,0.00048827,95790.0,95785.0,0.10429976]
[1736531848674,0.00048827,95790.0,95774.0,0.208824]
[1736531848882,0.00048827,95790.0,95775.0,0.10429976]
[1736531849071,0.208804,95784.0,95775.0,0.10429976]
[1736531849273,0.208828,95773.0,95714.0,0.0001696]
[1736531849507,0.32781779,95770.0,95742.0,0.01696]
[1736531849713,0.32781779,95770.0,95754.0,0.208866]
[1736531849922,0.32781779,95770.0,95756.0,0.208864]
[1736531850130,0.32781779,95770.0,95757.0,0.10429976]
[1736531850341,0.208858,95759.0,95739.0,0.2089]
[1736531850577,0.32781779,95750.0,95725.0,0.0803]
[1736531850792,0.00130552,95749.0,95726.0,0.10429976]
[1736531851012,0.208903,95739.0,95725.0,0.18459976]
[1736531851226,0.10429976,95768.0,95725.0,0.18459976]
[1736531851227,0.32781779,95770.0,95727.0,0.10429976]
[1736531851450,0.00130541,95769.0,95727.0,0.10429976]
[1736531851654,0.208835,95769.0,95750.0,0.208875]
[1736531851912,0.208835,95769.0,95725.0,0.0803]
[1736531851913,0.002,95770.0,95751.0,0.10429976]
[1736531852123,0.32981779,95770.0,95751.0,0.10429976]
[1736531852333,0.53665279,95770.0,95752.0,0.208872]
[1736531852548,0.40236547,95770.0,95736.0,0.208906]
[1736531852770,0.208883,95748.0,95737.0,0.10429976]
[1736531852978,0.004,95749.0,95737.0,0.10429976]
[1736531853203,0.004,95749.0,95737.0,0.10413583]
[1736531853411,0.208881,95748.0,95737.0,0.10413583]
[1736531853619,0.004,95749.0,95730.0,1.5]
[1736531853833,0.208884,95747.0,95730.0,1.60429976]
[1736531854059,0.32781779,95750.0,95724.0,0.0467]
[1736531854324,0.208822,95730.0,95725.0,0.00014468]
[1736531854522,0.308929,95726.0,95725.0,0.00014468]
[1736531854726,0.56322876,95726.0,95725.0,0.00014468]
[1736531854937,0.31322876,95726.0,95725.0,0.00014468]
[1736531855107,0.208822,95730.0,95725.0,0.00014468]
[1736531855369,0.1,95745.0,95725.0,0.00014468]
[1736531855581,0.208925,95728.0,95725.0,0.00014468]
[1736531855790,0.208929,95726.0,95725.0,0.00014468]
[1736531855997,0.54147474,95726.0,95725.0,0.00014468]
[1736531856620,0.208929,95726.0,95725.0,0.00014468]
[1736531857261,0.1,95745.0,95725.0,0.00014468]
[1736531857262,0.208905,95737.0,95725.0,0.00014468]
[1736531857464,0.32781779,95750.0,95726.0,0.10429976]
[1736531857670,0.008,95730.0,95727.0,0.208927]
[1736531857873,0.208876,95751.0,95728.0,0.10429976]
[1736531858106,0.32912329,95750.0,95725.0,0.00014468]
[1736531858322,0.003,95726.0,95725.0,0.00014468]
[1736531858523,0.32781779,95735.0,95725.0,0.00014468]
[1736531858727,0.208929,95726.0,95725.0,0.00014468]
[1736531858935,0.32781779,95735.0,95725.0,0.00014468]
[1736531859143,0.32781779,95735.0,95677.0,0.209036]
[1736531859144,0.12781779,95735.0,95677.0,0.209036]
[1736531859348,0.12781779,95735.0,95715.0,0.00014471]
[1736531859349,0.208926,95728.0,95715.0,0.00014471]
[1736531859540,0.32781779,95750.0,95716.0,0.10429976]
[1736531859784,0.36243149,95828.0,95738.0,0.208902]
[1736531859785,0.32781779,95770.0,95738.0,0.208902]
[1736531859991,0.32781779,95770.0,95739.0,0.10429976]
[1736531860205,0.208847,95764.0,95744.0,0.208888]
[1736531860477,0.20881,95781.0,95745.0,0.10429976]
[1736531860698,0.009,95750.0,95745.0,0.10429976]
[1736531860910,0.09180994,95787.0,95758.0,0.208859]
[1736531861125,0.208795,95788.0,95765.0,0.208844]
[1736531861335,0.009,95770.0,95766.0,0.10429976]
[1736531861541,0.208805,95783.0,95766.0,0.10429976]
[1736531861772,0.208796,95787.0,95766.0,0.31314076]
[1736531861978,0.00048836,95790.0,95766.0,0.10429976]
[1736531862190,0.00048836,95790.0,95767.0,0.0799]
[1736531862393,0.00048836,95790.0,95774.0,0.208824]
[1736531862595,0.00048836,95790.0,95775.0,0.10429976]
[1736531862797,0.00048836,95790.0,95776.0,0.20882]
[1736531863017,0.00048836,95790.0,95777.0,0.10429976]
[1736531863226,0.00048836,95790.0,95784.0,0.208802]
[1736531863429,0.00048836,95790.0,95785.0,0.10429976]
[1736531863633,0.00038836,95790.0,95786.0,0.208798]
[1736531863806,0.00038836,95790.0,95787.0,0.10429976]
[1736531864009,0.00038836,95790.0,95788.0,1.708794]
[1736531864216,0.00038836,95790.0,95789.0,0.10429976]
[1736531864217,0.00438836,95790.0,95789.0,0.10429976]
[1736531864631,0.00038836,95790.0,95789.0,0.10429976]
[1736531864831,0.00138836,95790.0,95789.0,1.60429976]
[1736531865193,0.00038836,95790.0,95789.0,1.60429976]
[1736531865391,0.00038836,95790.0,95789.0,1.60629976]
[1736531865601,0.00138836,95790.0,95789.0,1.60629976]
[1736531866652,0.00138836,95790.0,95789.0,1.502]
[1736531866853,0.00138836,95790.0,95789.0,0.002]
[1736531867831,0.00038836,95790.0,95771.0,0.208831]
[1736531868152,0.00138836,95790.0,95789.0,0.001]
[1736531868579,0.00038836,95790.0,95772.0,0.10429976]
[1736531868754,0.00038836,95790.0,95789.0,0.001]
[1736531868925,0.20917836,95790.0,95789.0,0.001]
[1736531869083,0.208794,95788.0,95767.0,0.0799]
[1736531869285,0.0214367,95790.0,95758.0,0.208858]
[1736531869286,0.00038836,95790.0,95768.0,0.10429976]
[1736531869498,0.00038836,95790.0,95758.0,0.208858]
[1736531869757,0.00038836,95790.0,95759.0,0.10429976]
[1736531870096,0.208832,95771.0,95746.0,0.208885]
[1736531870301,0.208832,95771.0,95744.0,0.0804]
[1736531870302,0.00038836,95790.0,95750.0,0.10429976]
[1736531870572,0.00130521,95789.0,95751.0,0.208875]
[1736531870800,0.00138836,95790.0,95750.0,0.32781779]
[1736531871006,0.10560475,95788.0,95752.0,0.10429976]
[1736531871216,0.10560475,95788.0,95753.0,1.5]
[1736531871417,0.208822,95776.0,95754.0,0.10429976]
[1736531871636,0.208812,95780.0,95760.0,0.208854]
[1736531871835,0.208812,95780.0,95755.0,0.208865]
[1736531871836,0.208823,95775.0,95755.0,0.208865]
[1736531872048,0.208823,95775.0,95757.0,0.208862]
[1736531872677,0.2166987,95780.0,95744.0,0.09672]
[1736531872678,0.208868,95754.0,95744.0,0.0804]
[1736531872889,0.417654,95773.0,95732.0,0.02961004]
[1736531872890,0.01899629,95753.0,95732.0,0.02961004]
[1736531873103,0.00130552,95752.0,95732.0,0.02961004]
[1736531873336,0.29112841,95750.0,95732.0,0.02961004]
[1736531873555,0.15130567,95749.0,95732.0,0.02961004]
[1736531873761,0.20891,95735.0,95732.0,0.02961004]
[1736531873967,0.29112841,95760.0,95732.0,0.02975475]
[1736531874178,0.29112841,95780.0,95755.0,0.001]
[1736531874391,0.00130547,95779.0,95756.0,0.10429976]
[1736531874638,0.208812,95780.0,95756.0,0.10429976]
[1736531874845,0.09180994,95779.0,95756.0,0.10429976]
[1736531875048,0.0038867,95769.0,95766.0,0.208842]
[1736531875254,0.0038867,95769.0,95768.0,0.31313776]
[1736531875458,0.0108867,95769.0,95768.0,0.31313776]
[1736531875906,0.0038867,95769.0,95768.0,1.81313776]
[1736531876520,0.0038867,95769.0,95768.0,1.81328247]
[1736531877148,0.0048867,95769.0,95768.0,1.81328247]
[1736531877359,0.29112841,95810.0,95768.0,1.81328247]
[1736531877360,0.20874,95813.0,95797.0,0.208774]
[1736531877559,0.208751,95808.0,95786.0,0.208797]
[1736531877759,0.208751,95808.0,95788.0,0.208792]
[1736531877958,0.00138975,95807.0,95774.0,0.01632]
[1736531878190,0.00138975,95807.0,95775.0,0.10429976]
[1736531878370,8.5e-05,95807.0,95798.0,0.208771]
[1736531878610,0.00057329,95807.0,95798.0,1.5]
[1736531879107,0.00057329,95807.0,95799.0,0.20877]
[1736531879310,0.00057329,95807.0,95803.0,0.208759]
[1736531879484,0.00057329,95807.0,95772.0,0.208827]
[1736531879485,0.0049321,95847.0,95837.0,0.208687]
[1736531879688,0.0049321,95847.0,95818.0,0.0156]
[1736531879861,0.0049321,95847.0,95805.0,0.0459]
[1736531879862,0.0062364,95847.0,95819.0,0.10429976]
[1736531880070,0.0013043,95846.0,95827.0,0.208708]
[1736531880264,0.0049321,95847.0,95840.0,0.20868]
[1736531880464,0.0049321,95847.0,95841.0,0.10429976]
[1736531880691,0.0049321,95847.0,95842.0,0.291276]
[1736531880932,0.0049321,95847.0,95844.0,0.208672]
[1736531881141,0.0049321,95847.0,95845.0,0.10429976]
[1736531881345,0.09180994,95883.0,95846.0,0.10429976]
[1736531881496,0.09180994,95883.0,95841.0,0.00014471]
[1736531881497,0.1659455,95891.0,95883.0,0.338187]
[1736531881698,0.005002,95962.0,95912.0,0.1]
[1736531881881,0.005002,95962.0,95922.0,0.31280176]
[1736531881882,0.45983361,95923.0,95922.0,0.31280176]
[1736531882080,0.45983361,95923.0,95922.0,0.10429976]
[1736531882081,0.00795655,95923.0,95922.0,0.10429976]
[1736531882347,0.10298401,95930.0,95923.0,0.2085]
[1736531882549,0.10298401,95930.0,95922.0,0.10429976]
[1736531883000,0.10347322,95930.0,95926.0,0.10429976]
[1736531883200,0.01038921,95930.0,95929.0,0.10429976]
[1736531883787,0.01038921,95930.0,95908.0,0.13189474]
[1736531883989,0.01038921,95930.0,95909.0,0.10429976]
[1736531884204,0.01038921,95930.0,95908.0,0.13189474]
[1736531884205,0.20852,95914.0,95908.0,0.13189474]
[1736531884414,0.15,95913.0,95895.0,0.16130002]
[1736531884618,0.15,95913.0,95886.0,0.21868467]
[1736531884619,0.15,95904.0,95886.0,0.21868467]
[1736531884821,0.2086,95878.0,95874.0,0.02940528]
[1736531885281,0.208602,95876.0,95874.0,0.02940528]
[1736531885488,0.417206,95876.0,95872.0,0.13164099]
[1736531885602,0.208648,95855.0,95837.0,0.047]
[1736531885810,0.32633258,95890.0,95837.0,0.047]
[1736531885811,0.208656,95852.0,95837.0,0.10429976]
[1736531886065,0.32633258,95890.0,95838.0,0.10429976]
[1736531886249,0.32633258,95890.0,95847.0,0.10429976]
[1736531886453,0.208621,95868.0,95847.0,0.10429976]
[1736531886898,0.208607,95874.0,95847.0,0.10429976]
[1736531887139,0.208642,95858.0,95847.0,0.10429976]
[1736531887302,0.208647,95856.0,95847.0,0.10429976]
[1736531887503,0.20866,95850.0,95837.0,0.00014471]
[1736531887681,0.208683,95839.0,95837.0,0.00014471]
[1736531888269,0.15130441,95838.0,95837.0,0.00014471]
[1736531888469,0.25560417,95838.0,95837.0,0.00014471]
[1736531888718,0.208664,95848.0,95837.0,0.10444447]
[1736531888914,0.32633258,95870.0,95838.0,0.10429976]
[1736531889160,0.208654,95853.0,95839.0,0.10429976]
[1736531889365,0.15,95868.0,95837.0,0.00014471]
[1736531889695,0.20868,95841.0,95837.0,0.00014471]
[1736531889943,0.208683,95839.0,95837.0,0.00014471]
[1736531890070,0.1056042,95838.0,95837.0,7.1e-07]
[1736531890281,0.2556042,95838.0,95837.0,7.1e-07]
[1736531890492,0.20877,95799.0,95760.0,0.208854]
[1736531890895,0.20877,95799.0,95752.0,0.0801]
[1736531891106,0.208833,95770.0,95752.0,0.0461]
[1736531891323,0.20882,95777.0,95752.0,0.0461]
[1736531891531,0.208772,95798.0,95757.0,0.10429976]
[1736531891775,0.208772,95798.0,95752.0,0.0461]
[1736531891776,0.208772,95798.0,95773.0,0.10429976]
[1736531891977,0.00048808,95798.0,95773.0,0.10429976]
[1736531892319,0.208797,95787.0,95773.0,0.10429976]
[1736531892532,0.00048808,95798.0,95785.0,0.10429976]
[1736531892724,0.00048808,95798.0,95786.0,0.10429976]
[1736531892926,0.208788,95791.0,95786.0,0.10429976]
[1736531893130,0.00048808,95798.0,95752.0,0.0461]
[1736531893314,0.208795,95788.0,95764.0,0.10429976]
[1736531893548,0.00048808,95798.0,95774.0,0.10429976]
[1736531893757,0.00048808,95798.0,95779.0,0.10429976]
[1736531894162,0.00048808,95798.0,95783.0,0.10429976]
[1736531894376,0.00948808,95798.0,95783.0,0.10429976]
[1736531894781,0.208811,95781.0,95750.0,0.0001706]
[1736531894958,0.208778,95796.0,95779.0,0.002]
[1736531895222,0.00048808,95798.0,95791.0,0.10429976]
[1736531895430,0.00048808,95798.0,95770.0,0.32633258]
[1736531895431,0.00048808,95798.0,95797.0,0.10429976]
[1736531895633,0.0801,95865.0,95798.0,0.0499]
[1736531895848,0.32633258,95870.0,95801.0,0.1]
[1736531895849,0.208656,95852.0,95801.0,0.1]
[1736531896051,0.208579,95841.0,95815.0,0.208735]
[1736531896467,0.208579,95841.0,95798.0,0.0499]
[1736531896468,0.208579,95841.0,95839.0,1.5]
[1736531896675,0.208702,95831.0,95806.0,0.208753]
[1736531896880,0.32633258,95850.0,95807.0,0.10429976]
[1736531897089,0.32633258,95850.0,95816.0,1.5]
[1736531897090,0.208731,95817.0,95816.0,1.5]
[1736531897294,0.208628,95864.0,95816.0,0.10429976]
[1736531897473,0.001,95841.0,95817.0,0.10429976]
[1736531897775,0.208666,95847.0,95817.0,0.10429976]
[1736531897975,0.009,95831.0,95817.0,0.10429976]
[1736531898404,0.1,95889.0,95830.0,0.10429976]
[1736531898583,0.32633258,95890.0,95830.0,0.10429976]
[1736531898584,0.208651,95854.0,95830.0,0.10429976]
[1736531898793,0.208651,95854.0,95816.0,0.001]
[1736531898794,0.009,95864.0,95839.0,0.10429976]
[1736531899140,0.009,95864.0,95816.0,0.001]
[1736531899141,0.10560369,95863.0,95823.0,0.208717]
[1736531899348,0.208672,95845.0,95825.0,0.208713]
[1736531899560,0.208672,95845.0,95824.0,0.10429976]
[1736531899561,0.00914648,95864.0,95833.0,0.208696]
[1736531899771,0.208664,95848.0,95834.0,0.10429976]
[1736531899985,0.208646,95856.0,95834.0,0.10429976]
[1736531900194,0.00014648,95864.0,95834.0,0.10429976]
[1736531900399,0.00014648,95864.0,95817.0,0.003]
[1736531900400,0.00014648,95864.0,95846.0,0.208666]
[1736531900604,0.00014648,95864.0,95849.0,0.208661]
[1736531900805,0.208631,95863.0,95850.0,0.10429976]
[1736531901083,0.208646,95856.0,95834.0,0.004]
[1736531901288,0.208658,95851.0,95835.0,0.10429976]
[1736531901491,0.208658,95851.0,95798.0,0.1241894]
[1736531901492,0.00014648,95864.0,95798.0,0.1241894]
[1736531901695,0.00130419,95863.0,95826.0,0.20871]
[1736531901893,0.208648,95856.0,95828.0,0.208707]
[1736531902098,0.208659,95850.0,95829.0,0.10429976]
[1736531902314,0.208671,95845.0,95829.0,0.10429976]
[1736531902511,0.00130414,95844.0,95818.0,0.208728]
[1736531902737,0.32633258,95850.0,95819.0,0.10429976]
[1736531902938,0.417475,95814.0,95799.0,0.05228412]
[1736531903143,0.15,95842.0,95806.0,0.10429976]
[1736531903144,0.15,95829.0,95806.0,0.10429976]
[1736531903260,0.32633258,95850.0,95807.0,0.02928412]
[1736531903461,0.203705,95830.0,95813.0,0.208739]
[1736531903689,0.203705,95830.0,95814.0,0.10429976]
[1736531904327,0.0001464,95830.0,95814.0,0.10429976]
[1736531905024,0.25429976,95829.0,95807.0,0.02928412]
[1736531905167,0.208735,95815.0,95814.0,0.002]
[1736531906039,0.208719,95823.0,95814.0,0.002]
[1736531906528,0.0001464,95830.0,95795.0,1.5]
[1736531906529,0.208758,95805.0,95795.0,1.5]
[1736531906732,0.0001464,95830.0,95804.0,0.10429976]
[1736531906945,0.0001464,95830.0,95790.0,0.32633258]
[1736531906946,0.0001464,95830.0,95825.0,0.208713]
[1736531907149,0.0001464,95830.0,95829.0,1.5]
[1736531907353,0.0001464,95830.0,95829.0,1.60429976]
[1736531908221,0.0001464,95830.0,95829.0,1.81300476]
[1736531908430,0.00130399,95878.0,95834.0,0.208694]
[1736531908631,0.15,95876.0,95835.0,0.10429976]
[1736531908846,0.20865,95854.0,95835.0,0.10429976]
[1736531909040,0.10429976,95876.0,95835.0,0.10429976]
[1736531909041,0.29038501,95870.0,95835.0,0.10429976]
[1736531909248,0.15,95868.0,95836.0,0.10429976]
[1736531909402,0.15,95866.0,95836.0,0.10429976]
[1736531909609,0.15,95866.0,95815.0,0.20862048]
[1736531909610,0.208697,95833.0,95815.0,0.20862048]
[1736531909839,0.208697,95833.0,95816.0,0.10429976]
[1736531910040,0.208675,95843.0,95816.0,0.10429976]
[1736531910216,0.0457,95892.0,95843.0,0.208672]
[1736531910458,0.208645,95857.0,95844.0,0.10429976]
[1736531910661,0.208631,95863.0,95844.0,0.10429976]
[1736531910860,0.208641,95859.0,95844.0,0.10478496]
[1736531911071,8.53e-05,95893.0,95850.0,0.10429976]
[1736531911528,0.15,95891.0,95850.0,0.10418846]
[1736531911871,0.15,95887.0,95844.0,0.0004852]
[1736531912013,0.208639,95860.0,95845.0,0.10429976]
[1736531912420,0.208632,95863.0,95845.0,0.05429976]
[1736531912694,0.208635,95861.0,95845.0,0.05429976]
[1736531912865,0.208635,95861.0,95845.0,0.05419605]
[1736531913067,0.25429976,95886.0,95845.0,0.05419605]
[1736531913270,0.208596,95879.0,95845.0,0.05419605]
[1736531913458,0.00130398,95878.0,95848.0,0.10429976]
[1736531913654,0.50164452,96022.0,95860.0,0.10429976]
[1736531913655,0.0761529,95933.0,95860.0,0.10429976]
[1736531913890,0.0761529,95933.0,95885.0,0.208582]
[1736531913891,0.208537,95907.0,95885.0,0.208582]
[1736531914098,0.208554,95899.0,95880.0,0.208593]
[1736531914293,0.00130338,95898.0,95865.0,0.10418917]
[1736531914494,0.3270649,95920.0,95864.0,0.208627]
[1736531914495,0.15,95901.0,95864.0,0.208627]
[1736531914739,0.15,95901.0,95851.0,0.00853934]
[1736531914740,0.009,95879.0,95861.0,0.0294164]
[1736531914943,0.009,95879.0,95866.0,1.5]
[1736531915145,0.208569,95892.0,95867.0,0.31292076]
[1736531915319,0.15,95901.0,95867.0,0.10429976]
[1736531915320,0.208583,95886.0,95867.0,0.10429976]
[1736531915525,0.2086523,95893.0,95867.0,0.10429976]
[1736531915727,0.208577,95888.0,95867.0,0.1041942]
[1736531915927,0.208577,95888.0,95868.0,1.5]
[1736531916156,0.208577,95888.0,95869.0,0.10429976]
[1736531916361,8.53e-05,95893.0,95867.0,0.0294164]
[1736531916569,8.53e-05,95893.0,95880.0,0.002]
[1736531916570,0.15,95885.0,95880.0,0.002]
[1736531916730,0.567174,95883.0,95880.0,0.002]
[1736531916942,0.208613,95872.0,95867.0,0.0294164]
[1736531917139,0.417226,95872.0,95868.0,0.003]
[1736531917713,0.208622,95867.0,95866.0,0.0004852]
[1736531918330,8.53e-05,95893.0,95866.0,0.0004852]
[1736531918549,0.003,95872.0,95866.0,0.0004852]
[1736531918783,0.208613,95871.0,95866.0,0.0004852]
[1736531919237,0.20852586,95869.0,95866.0,0.00037539]
[1736531919449,0.208622,95867.0,95866.0,0.00037539]
[1736531920636,0.31292176,95867.0,95866.0,0.00025948]
[1736531921807,0.287484,95885.0,95866.0,0.00025948]
[1736531921808,0.208622,95868.0,95866.0,0.00025948]
[1736531921966,8.53e-05,95893.0,95867.0,0.10429976]
[1736531922173,8.53e-05,95893.0,95866.0,0.00025948]
[1736531922373,8.53e-05,95893.0,95888.0,0.208574]
[1736531922602,0.208542,95904.0,95889.0,0.10429976]
[1736531922807,8.53e-05,95925.0,95889.0,0.10429976]
[1736531923023,0.25429976,95924.0,95879.0,0.208594]
[1736531923181,0.00130352,95923.0,95880.0,0.10429976]
[1736531923382,0.15,95920.0,95880.0,0.10429976]
[1736531923758,0.023,95904.0,95866.0,0.00025948]
[1736531923973,0.3270649,95890.0,95866.0,0.00025948]
[1736531924179,0.208622,95867.0,95866.0,0.00025948]
[1736531924943,0.208618,95869.0,95866.0,0.00025948]
[1736531925140,0.417236,95869.0,95866.0,0.00015495]
[1736531925318,0.208618,95869.0,95866.0,0.00015495]
[1736531925520,0.208569,95892.0,95874.0,0.208605]
[1736531925862,0.208561,95896.0,95875.0,0.10429976]
[1736531926017,0.208571,95891.0,95877.0,1.5]
[1736531926220,0.208571,95891.0,95878.0,0.10429976]
[1736531926438,0.2311,95917.0,95878.0,0.10429976]
[1736531926644,0.00130357,95916.0,95878.0,0.10429976]
[1736531926847,0.00138865,95925.0,95878.0,0.0498]
[1736531927051,0.20851,95919.0,95898.0,0.208552]
[1736531927347,0.20851,95919.0,95878.0,0.003]
[1736531927348,0.10560302,95918.0,95878.0,0.003]
[1736531927589,0.20856,95896.0,95879.0,0.10429976]
[1736531927865,0.10560302,95918.0,95867.0,0.208621]
[1736531927866,0.208566,95893.0,95867.0,0.208621]
[1736531928022,0.208591,95882.0,95868.0,0.10429976]
[1736531928193,0.231535,95907.0,95868.0,0.00038145]
[1736531928393,0.208535,95908.0,95868.0,0.00038145]
[1736531928394,0.023,95905.0,95868.0,0.00038145]
[1736531928599,0.15,95901.0,95868.0,0.00038145]
[1736531928870,0.10560358,95900.0,95869.0,0.10429976]
[1736531929066,0.41722,95873.0,95868.0,0.00038145]
[1736531929667,0.2902828,95920.0,95869.0,0.10429976]
[1736531929817,0.2902828,95920.0,95876.0,0.208601]
[1736531929818,0.208568,95892.0,95876.0,0.208601]
[1736531930045,0.208568,95892.0,95877.0,0.10429976]
[1736531930237,0.10429976,95919.0,95877.0,0.10429976]
[1736531930439,0.007,95918.0,95877.0,0.10429976]
[1736531930665,0.007,95918.0,95868.0,0.00038145]
[1736531930666,0.208498,95924.0,95887.0,0.10429976]
[1736531931007,0.0099,95930.0,95896.0,0.10429976]
[1736531931126,0.0099,95930.0,95913.0,0.20852]
[1736531931399,0.2085813,95925.0,95897.0,0.0459]
[1736531931592,0.007,95918.0,95898.0,0.10429976]
[1736531931794,0.007,95918.0,95899.0,0.208552]
[1736531932000,0.007,95918.0,95900.0,0.10429976]
[1736531932204,0.007,95918.0,95877.0,0.208599]
[1736531932404,0.007,95918.0,95878.0,0.10429976]
[1736531932405,0.2902828,95910.0,95878.0,0.10429976]
[1736531932610,0.00130358,95909.0,95878.0,0.10429976]
[1736531932810,0.00130342,95917.0,95878.0,0.10429976]
[1736531933010,0.2161727,95925.0,95878.0,0.10429976]
[1736531933215,0.2161727,95925.0,95887.0,0.208577]
[1736531933216,0.208537,95907.0,95887.0,0.208577]
[1736531933441,0.208544,95903.0,95888.0,0.10429976]
[1736531933639,0.208544,95903.0,95884.0,0.208583]
[1736531933928,0.10429976,95924.0,95876.0,0.00048612]
[1736531933929,0.00130348,95902.0,95876.0,0.00048612]
[1736531934146,0.15,95898.0,95876.0,0.00048612]
[1736531934365,0.208598,95878.0,95876.0,0.00048612]
[1736531934570,0.00130387,95877.0,95876.0,0.00048612]
[1736531934747,0.208598,95878.0,95876.0,0.00048612]
[1736531935403,0.00130383,95877.0,95876.0,0.00048612]
[1736531935997,0.208598,95878.0,95876.0,0.00048612]
[1736531936194,0.208593,95881.0,95876.0,0.00048612]
[1736531936397,0.208594,95880.0,95876.0,0.00048612]
[1736531937237,0.005,95878.0,95876.0,0.00048612]
[1736531937438,0.208564,95894.0,95877.0,0.10429976]
[1736531937611,0.2902828,95920.0,95877.0,0.10429976]
[1736531937821,0.417192,95879.0,95876.0,0.00148612]
[1736531938033,0.417192,95879.0,95878.0,1.5]
[1736531938240,0.208596,95879.0,95878.0,1.5]
[1736531939269,0.52149176,95879.0,95876.0,0.00048612]
[1736531939479,0.2086,95877.0,95876.0,0.00048612]
[1736531940085,0.31289976,95877.0,95876.0,0.00048612]
[1736531941004,0.31889976,95877.0,95876.0,0.00148612]
[1736531941206,0.46889976,95877.0,95876.0,1.2e-07]
[1736531941624,0.2146,95877.0,95876.0,1.2e-07]
[1736531942811,0.208613,95872.0,95854.0,0.208649]
[1736531943025,0.208559,95896.0,95859.0,0.00048668]
[1736531943026,0.208631,95863.0,95859.0,0.00048668]
[1736531943196,0.417264,95863.0,95859.0,0.00048668]
[1736531943396,0.208635,95861.0,95859.0,0.00048668]
[1736531943632,0.00130414,95860.0,95859.0,0.00048668]
[1736531944412,0.2556039,95860.0,95859.0,0.00048668]
[1736531944587,0.42959976,95860.0,95859.0,6.8e-07]
[1736531944783,0.42959976,95860.0,95844.0,0.02960088]
[1736531944784,0.15,95845.0,95844.0,7.6e-07]
[1736531945016,0.25560426,95845.0,95844.0,0.00048778]
[1736531945247,0.25429976,95845.0,95844.0,0.00048702]
[1736531945675,0.25429976,95845.0,95844.0,2e-08]
[1736531945841,0.30688658,95845.0,95844.0,2e-08]
[1736531946056,0.35859952,95845.0,95844.0,2e-08]
[1736531946265,0.208668,95846.0,95844.0,2e-08]
[1736531946455,0.10560423,95845.0,95844.0,2e-08]
[1736531946842,0.11460423,95845.0,95844.0,2e-08]
[1736531947016,0.25560423,95845.0,95844.0,2e-08]
[1736531947226,0.34245918,95845.0,95844.0,2e-08]
[1736531947585,0.19245918,95845.0,95844.0,2e-08]
[1736531947799,0.10560439,95845.0,95844.0,2e-08]
[1736531948078,0.10560439,95845.0,95844.0,0.00100002]
[1736531948079,0.11460439,95845.0,95844.0,0.00100002]
[1736531949548,0.2902828,95870.0,95844.0,2e-08]
[1736531949748,0.521281,95918.0,95844.0,2e-08]
[1736531949749,0.208556,95898.0,95848.0,0.10429976]
[1736531949863,0.208556,95898.0,95845.0,0.0138]
[1736531949864,0.0758852,95932.0,95872.0,0.10429976]
[1736531950069,0.2902828,95920.0,95875.0,0.10429976]
[1736531950269,0.2902828,95920.0,95844.0,2e-08]
[1736531950270,0.2902828,95900.0,95876.0,1.5]